[Event "44th Chess Olympiad Open 2022"]
[Site "Chennai"]
[Date "2022.08.08"]
[Round "10.27"]
[White "Sebenik, Matej"]
[Black "Greet, Andrew N"]
[Result "1/2-1/2"]
[WhiteElo "2512"]
[BlackElo "2392"]
[Annotator "RC"]
[PlyCount "135"]
[EventDate "2022.??.??"]
[TimeControl "60"]

1. d4 {[%emt 0:00:08]} e6 {[%emt 0:00:11]} 2. c4 {[%emt 0:00:19]} f5 {[%emt 0:
00:00]} 3. g3 {[%emt 0:00:30]} Nf6 {[%emt 0:00:06]} 4. Bg2 {[%emt 0:00:15]} d5
{[%emt 0:00:08]} 5. Nh3 {[%emt 0:00:47]} Bd6 {[%emt 0:00:09]} 6. O-O {[%emt 0:
00:00]} O-O {[%emt 0:00:11]} 7. Nd2 {[%emt 0:01:47]} Nc6 {[%emt 0:01:04]} 8.
Nf3 {[%emt 0:01:08]} dxc4 {[%emt 0:00:33]} 9. Qa4 {[%emt 0:01:34]} Nb4 {
[%emt 0:00:17]} 10. Qb5 {[%emt 0:09:28]} Bd7 {[%emt 0:00:22]} 11. Qxc4 {
[%emt 0:00:06]} Qe8 {[%emt 0:00:38]} 12. Bf4 {[%emt 0:13:49]} Bb5 {[%emt 0:00:
00]} 13. Qb3 {[%emt 0:01:48]} Ba4 {[%emt 0:16:33]} 14. Qc3 {[%emt 0:01:49]}
Nbd5 {[%emt 0:16:03]} 15. Qc1 {[%emt 0:00:04]} Nxf4 {[%emt 0:01:01]} 16. Nxf4 {
[%emt 0:00:15]} Bc6 {[%emt 0:01:10]} 17. Ng5 {[%emt 0:12:09]} Bxf4 {[%emt 0:00:
00]} 18. Qxf4 {[%emt 0:00:00]} Bxg2 {[%emt 0:02:01]} 19. Kxg2 {[%emt 0:00:05]}
h6 {[%emt 0:00:12]} 20. Nf3 {[%emt 0:00:11]} Nd5 {[%emt 0:00:20]} 21. Qd2 {
[%emt 0:02:33]} f4 {[%emt 0:01:50]} 22. Qd3 {[%emt 0:07:53]} a6 {[%emt 0:06:04]
} 23. Rac1 {[%emt 0:05:34]} Rf6 {[%emt 0:03:24]} 24. Ne5 {[%emt 0:03:16]} Rd8 {
[%emt 0:05:03]} 25. a3 {[%emt 0:12:01]} Rf5 {[%emt 0:01:52]} 26. Qb3 {[%emt 0:
00:00]} Qb5 {[%emt 0:02:35]} 27. Qxb5 {[%emt 0:00:34]} axb5 {[%emt 0:00:06]}
28. Nd3 {[%emt 0:00:31]} g5 {[%emt 0:07:57]} 29. Nc5 {[%emt 0:13:24]} b6 {
[%emt 0:01:11]} 30. Nd3 {[%emt 0:00:03]} Ra8 {[%emt 0:09:03]} 31. Rfe1 {
[%emt 0:03:21]} Raf8 {[%emt 0:05:51]} 32. Kg1 {[%emt 0:00:07]} h5 {[%emt 0:00:
00]} 33. Rc6 {[%emt 0:02:11]} R5f6 {[%emt 0:01:42]} 34. e4 {[%emt 0:01:19]}
fxe3 {[%emt 0:00:13]} 35. fxe3 {[%emt 0:00:03]} Rc8 {[%emt 0:01:41]} 36. Ne5 {
[%emt 0:03:00]} Ne7 {[%emt 0:00:53]} 37. Nd7 {[%emt 0:00:53]} Nxc6 {[%emt 0:00:
00]} 38. Nxf6+ {[%emt 0:00:03]} Kf7 {[%emt 0:00:12]} 39. Nxh5 {[%emt 0:00:03]}
Na5 {[%emt 0:01:16]} 40. g4 {[%emt 0:01:24]} Nc4 {[%emt 0:01:11]} 41. Re2 {
[%emt 0:07:30]} Rd8 {[%emt 0:08:43]} 42. Ng3 {[%emt 0:00:00]} Kg6 {[%emt 0:00:
00]} 43. Kf2 {[%emt 0:03:02]} c5 {[%emt 0:03:07]} 44. h3 {[%emt 0:00:00]} Rh8 {
[%emt 0:08:26]} 45. Kg2 {[%emt 0:00:00]} Rd8 {[%emt 0:09:39]} 46. Ne4 {[%emt 0:
00:00]} cxd4 {[%emt 0:00:00]} 47. exd4 {[%emt 0:01:40]} Rxd4 {[%emt 0:00:00]}
48. Nc3 {[%emt 0:00:04]} e5 {[%emt 0:00:00]} 49. Nxb5 {[%emt 0:08:26]} Rd3 {
[%emt 0:00:00]} 50. Nc3 {[%emt 0:05:40]} Nxb2 {[%emt 0:00:00]} 51. Rxb2 {
[%emt 0:03:48]} Rxc3 {[%emt 0:00:00]} 52. Rxb6+ {[%emt 0:00:05]} Kf7 {[%emt 0:
00:00]} 53. Ra6 {[%emt 0:01:08]} e4 {[%emt 0:00:37]} 54. a4 {[%emt 0:00:48]}
Rc2+ {[%emt 0:01:02]} 55. Kg3 {[%emt 0:00:31]} Rc3+ {[%emt 0:00:22]} 56. Kf2 {
[%emt 0:00:21]} Rxh3 {[%emt 0:00:49]} 57. Ra5 {[%emt 0:00:06]} Ra3 {[%emt 0:00:
00]} 58. Rf5+ {[%emt 0:00:03]} Kg6 {[%emt 0:00:53]} 59. a5 {[%emt 0:00:04]} Rb3
{[%emt 0:05:38]} 60. Rc5 {[%emt 0:00:21]} Ra3 {[%emt 0:00:20]} 61. Rc6+ {
[%emt 0:01:18]} Kg7 {[%emt 0:00:12]} 62. a6 {[%emt 0:00:17]} Kf7 {[%emt 0:00:
00]} 63. Ke2 {[%emt 0:01:04]} Kg7 {[%emt 0:00:25]} 64. Kd2 {[%emt 0:00:16]} Kf7
{[%emt 0:00:30]} 65. Kc2 {[%emt 0:00:31]} e3 {[%emt 0:00:36]} 66. Kd1 {[%emt 0:
00:00]} Ra2 {[%emt 0:00:19]} 67. Ke1 {[%emt 0:00:03]} Kg7 {[%emt 0:00:15]} 68.
Rb6 {[%emt 0:00:19]} 1/2-1/2

[Event "44th Chess Olympiad Open 2022"]
[Site "Chennai"]
[Date "2022.08.08"]
[Round "10.27"]
[White "Gourlay, Iain"]
[Black "Subelj, Jan"]
[Result "0-1"]
[WhiteElo "2321"]
[BlackElo "2498"]
[Annotator "RC"]
[PlyCount "94"]
[EventDate "2022.??.??"]
[TimeControl "60"]

1. d4 {[%emt 0:00:05]} d5 {[%emt 0:00:31]} 2. Nf3 {[%emt 0:00:19]} Nf6 {
[%emt 0:00:23]} 3. g3 {[%emt 0:00:15]} Bf5 {[%emt 0:00:40]} 4. Bg2 {[%emt 0:00:
00]} e6 {[%emt 0:00:24]} 5. c4 {[%emt 0:00:40]} c6 {[%emt 0:00:22]} 6. Nc3 {
[%emt 0:00:21]} h6 {[%emt 0:00:10]} 7. Qb3 {[%emt 0:00:43]} Qb6 {[%emt 0:00:08]
} 8. c5 {[%emt 0:00:22]} Qc7 {[%emt 0:00:33]} 9. Bf4 {[%emt 0:04:59]} Qc8 {
[%emt 0:02:14]} 10. Nd2 {[%emt 0:01:59]} Be7 {[%emt 0:00:48]} 11. e4 {[%emt 0:
00:00]} Bh7 {[%emt 0:04:15]} 12. O-O {[%emt 0:03:49]} O-O {[%emt 0:00:00]} 13.
Rfe1 {[%emt 0:04:01]} Rd8 {[%emt 0:00:00]} 14. Rad1 {[%emt 0:03:35]} b6 {
[%emt 0:05:13]} 15. cxb6 {[%emt 0:19:57]} axb6 {[%emt 0:00:20]} 16. Qxb6 {
[%emt 0:13:19]} g5 {[%emt 0:00:09]} 17. Be3 {[%emt 0:05:16]} Na6 {[%emt 0:00:
00]} 18. Qb3 {[%emt 0:04:58]} Rb8 {[%emt 0:00:08]} 19. Qc2 {[%emt 0:02:57]} Nb4
{[%emt 0:00:04]} 20. Qb1 {[%emt 0:01:38]} c5 {[%emt 0:00:33]} 21. Nb3 {[%emt 0:
00:00]} c4 {[%emt 0:12:23]} 22. Nc1 {[%emt 0:01:25]} Qb7 {[%emt 0:05:13]} 23.
f4 {[%emt 0:09:12]} Nxe4 {[%emt 0:02:05]} 24. Nxe4 {[%emt 0:00:27]} Bxe4 {
[%emt 0:00:11]} 25. Bxe4 {[%emt 0:00:08]} dxe4 {[%emt 0:00:06]} 26. fxg5 {
[%emt 0:01:43]} hxg5 {[%emt 0:00:12]} 27. a3 {[%emt 0:01:50]} Nd3 {[%emt 0:00:
00]} 28. Nxd3 {[%emt 0:00:10]} cxd3 {[%emt 0:00:31]} 29. b4 {[%emt 0:02:19]}
Bf6 {[%emt 0:02:03]} 30. Qb2 {[%emt 0:01:55]} Qd5 {[%emt 0:00:15]} 31. Rf1 {
[%emt 0:05:25]} Bg7 {[%emt 0:02:00]} 32. Rc1 {[%emt 0:02:25]} Bxd4 {[%emt 0:00:
00]} 33. Bxd4 {[%emt 0:02:26]} Qxd4+ {[%emt 0:00:08]} 34. Qxd4 {[%emt 0:00:04]}
Rxd4 {[%emt 0:00:07]} 35. Kf2 {[%emt 0:00:21]} d2 {[%emt 0:00:10]} 36. Ra1 {
[%emt 0:01:54]} Rbd8 {[%emt 0:02:29]} 37. Ke2 {[%emt 0:00:18]} f5 {[%emt 0:00:
00]} 38. Rad1 {[%emt 0:01:21]} Rd3 {[%emt 0:00:33]} 39. a4 {[%emt 0:01:01]}
R3d4 {[%emt 0:00:13]} 40. Rb1 {[%emt 0:00:33]} f4 {[%emt 0:00:20]} 41. gxf4 {
[%emt 0:01:14]} gxf4 {[%emt 0:00:06]} 42. Rfd1 {[%emt 0:02:16]} Rd3 {[%emt 0:
00:00]} 43. b5 {[%emt 0:02:05]} f3+ {[%emt 0:00:06]} 44. Kf2 {[%emt 0:00:24]}
Rf8 {[%emt 0:00:06]} 45. Rg1+ {[%emt 0:06:32]} Kh8 {[%emt 0:00:09]} 46. b6 {
[%emt 0:00:12]} e3+ {[%emt 0:00:06]} 47. Kg3 {[%emt 0:00:04]} f2 {[%emt 0:00:
00]} 0-1

[Event "44th Chess Olympiad Open 2022"]
[Site "Chennai"]
[Date "2022.08.08"]
[Round "10.27"]
[White "Tate, Alan"]
[Black "Markoja, Boris"]
[Result "1/2-1/2"]
[WhiteElo "2313"]
[BlackElo "2452"]
[Annotator "RC"]
[PlyCount "63"]
[EventDate "2022.??.??"]
[TimeControl "60"]

1. Nf3 {[%emt 0:00:07]} d5 {[%emt 0:00:16]} 2. g3 {[%emt 0:00:41]} Nd7 {
[%emt 0:00:22]} 3. d4 {[%emt 0:00:39]} Nb6 {[%emt 0:00:22]} 4. Bg2 {[%emt 0:00:
00]} Bf5 {[%emt 0:00:12]} 5. Nh4 {[%emt 0:03:52]} e6 {[%emt 0:04:10]} 6. Nxf5 {
[%emt 0:06:21]} exf5 {[%emt 0:00:18]} 7. Qd3 {[%emt 0:01:08]} g6 {[%emt 0:00:
00]} 8. a4 {[%emt 0:03:25]} a5 {[%emt 0:02:39]} 9. O-O {[%emt 0:06:03]} Nf6 {
[%emt 0:08:41]} 10. b3 {[%emt 0:07:50]} Be7 {[%emt 0:07:00]} 11. c4 {[%emt 0:
00:00]} O-O {[%emt 0:01:49]} 12. Nc3 {[%emt 0:02:29]} c6 {[%emt 0:02:16]} 13.
Bg5 {[%emt 0:01:58]} Ne4 {[%emt 0:07:25]} 14. Bxe7 {[%emt 0:01:04]} Qxe7 {
[%emt 0:00:05]} 15. cxd5 {[%emt 0:01:57]} Nxc3 {[%emt 0:06:24]} 16. Qxc3 {
[%emt 0:00:12]} Nxd5 {[%emt 0:00:20]} 17. Bxd5 {[%emt 0:00:28]} cxd5 {[%emt 0:
00:00]} 18. Qd2 {[%emt 0:03:58]} Rfc8 {[%emt 0:07:09]} 19. Rfc1 {[%emt 0:00:18]
} Qb4 {[%emt 0:07:44]} 20. Qxb4 {[%emt 0:00:53]} axb4 {[%emt 0:00:05]} 21. Rc5
{[%emt 0:06:19]} Rxc5 {[%emt 0:02:28]} 22. dxc5 {[%emt 0:00:13]} Rc8 {[%emt 0:
00:00]} 23. Rd1 {[%emt 0:01:30]} Rxc5 {[%emt 0:01:42]} 24. Rd4 {[%emt 0:00:06]}
b5 {[%emt 0:00:12]} 25. a5 {[%emt 0:01:21]} Rc1+ {[%emt 0:00:42]} 26. Kg2 {
[%emt 0:00:04]} Ra1 {[%emt 0:00:08]} 27. Rxd5 {[%emt 0:02:33]} Rxa5 {[%emt 0:
00:00]} 28. Rd4 {[%emt 0:03:46]} Kf8 {[%emt 0:10:19]} 29. Rxb4 {[%emt 0:07:36]}
Ke7 {[%emt 0:00:11]} 30. Rd4 {[%emt 0:00:23]} Ra3 {[%emt 0:00:44]} 31. Rb4 {
[%emt 0:00:06]} Ra5 {[%emt 0:00:04]} 32. Rd4 {[%emt 0:00:05]} 1/2-1/2

[Event "44th Chess Olympiad Open 2022"]
[Site "Chennai"]
[Date "2022.08.08"]
[Round "10.28"]
[White "Henriquez Villagra, Cristobal"]
[Black "Khusenkhojaev, Muhammad"]
[Result "1-0"]
[WhiteElo "2620"]
[BlackElo "2397"]
[Annotator "RC"]
[PlyCount "65"]
[EventDate "2022.??.??"]
[TimeControl "60"]

1. c4 {[%emt 0:00:04]} Nf6 {[%emt 0:00:23]} 2. Nc3 {[%emt 0:00:05]} d5 {
[%emt 0:00:07]} 3. cxd5 {[%emt 0:00:06]} Nxd5 {[%emt 0:00:05]} 4. Nf3 {[%emt 0:
00:00]} c5 {[%emt 0:02:50]} 5. e4 {[%emt 0:00:11]} Nxc3 {[%emt 0:00:10]} 6.
dxc3 {[%emt 0:00:06]} Qxd1+ {[%emt 0:00:13]} 7. Kxd1 {[%emt 0:00:06]} Nc6 {
[%emt 0:02:26]} 8. Kc2 {[%emt 0:03:47]} e6 {[%emt 0:13:20]} 9. a4 {[%emt 0:00:
00]} Bd6 {[%emt 0:05:29]} 10. Bb5 {[%emt 0:00:29]} e5 {[%emt 0:17:54]} 11. Be3
{[%emt 0:07:13]} f6 {[%emt 0:10:50]} 12. Rhd1 {[%emt 0:02:10]} Be7 {[%emt 0:00:
00]} 13. Nd2 {[%emt 0:07:28]} Bd7 {[%emt 0:08:28]} 14. Nb3 {[%emt 0:01:25]} a6
{[%emt 0:01:35]} 15. Be2 {[%emt 0:00:47]} b6 {[%emt 0:03:32]} 16. a5 {[%emt 0:
00:00]} bxa5 {[%emt 0:01:17]} 17. Nxc5 {[%emt 0:01:33]} Bxc5 {[%emt 0:00:14]}
18. Bxc5 {[%emt 0:00:05]} a4 {[%emt 0:00:02]} 19. Rd6 {[%emt 0:03:17]} Na5 {
[%emt 0:04:29]} 20. Rad1 {[%emt 0:04:39]} Bc6 {[%emt 0:00:22]} 21. f3 {[%emt 0:
00:00]} Kf7 {[%emt 0:00:08]} 22. Bb4 {[%emt 0:00:05]} Bb5 {[%emt 0:07:25]} 23.
Bxb5 {[%emt 0:07:22]} axb5 {[%emt 0:00:09]} 24. Bxa5 {[%emt 0:00:10]} Rxa5 {
[%emt 0:00:00]} 25. Rd7+ {[%emt 0:00:03]} Kg6 {[%emt 0:00:00]} 26. Rb7 {
[%emt 0:00:34]} Kh6 {[%emt 0:00:00]} 27. Kb1 {[%emt 0:04:09]} g6 {[%emt 0:00:
00]} 28. Ka2 {[%emt 0:03:21]} f5 {[%emt 0:06:18]} 29. exf5 {[%emt 0:00:00]}
gxf5 {[%emt 0:00:04]} 30. Rd6+ {[%emt 0:00:00]} Kg5 {[%emt 0:00:17]} 31. g3 {
[%emt 0:00:00]} a3 {[%emt 0:01:29]} 32. Rg7+ {[%emt 0:00:00]} Kh5 {[%emt 0:00:
00]} 33. g4+ {[%emt 0:00:00]} 1-0

[Event "44th Chess Olympiad Open 2022"]
[Site "Chennai"]
[Date "2022.08.08"]
[Round "10.28"]
[White "Salinas Herrera, Pablo"]
[Black "Sharifov, Mekhriddin"]
[Result "0-1"]
[WhiteElo "2526"]
[BlackElo "2097"]
[Annotator "RC"]
[PlyCount "120"]
[EventDate "2022.??.??"]
[TimeControl "60"]

1. e4 {[%emt 0:00:02]} c5 {[%emt 0:00:07]} 2. Nf3 {[%emt 0:00:06]} d6 {[%emt 0:
00:00]} 3. Bb5+ {[%emt 0:00:07]} Nd7 {[%emt 0:00:12]} 4. a4 {[%emt 0:00:07]}
Ngf6 {[%emt 0:01:08]} 5. Nc3 {[%emt 0:00:06]} e6 {[%emt 0:01:41]} 6. O-O {
[%emt 0:00:19]} a6 {[%emt 0:01:23]} 7. Be2 {[%emt 0:00:05]} b6 {[%emt 0:05:35]}
8. d4 {[%emt 0:00:05]} cxd4 {[%emt 0:00:19]} 9. Qxd4 {[%emt 0:00:06]} Be7 {
[%emt 0:03:19]} 10. Rd1 {[%emt 0:04:47]} Qc7 {[%emt 0:02:11]} 11. Nd2 {[%emt 0:
00:00]} O-O {[%emt 0:11:02]} 12. Nc4 {[%emt 0:01:29]} Rd8 {[%emt 0:02:24]} 13.
Be3 {[%emt 0:17:47]} e5 {[%emt 0:09:36]} 14. Qd2 {[%emt 0:00:26]} Nc5 {[%emt 0:
00:00]} 15. f3 {[%emt 0:02:53]} Be6 {[%emt 0:05:39]} 16. Nd5 {[%emt 0:03:10]}
Bxd5 {[%emt 0:00:09]} 17. exd5 {[%emt 0:00:06]} a5 {[%emt 0:07:25]} 18. Ra3 {
[%emt 0:08:19]} Nh5 {[%emt 0:04:24]} 19. c3 {[%emt 0:01:39]} f5 {[%emt 0:12:56]
} 20. Qc2 {[%emt 0:00:13]} Rf8 {[%emt 0:01:41]} 21. b4 {[%emt 0:04:33]} Nd7 {
[%emt 0:00:14]} 22. bxa5 {[%emt 0:01:25]} bxa5 {[%emt 0:00:08]} 23. Rb3 {
[%emt 0:00:06]} Bh4 {[%emt 0:05:58]} 24. Rdb1 {[%emt 0:03:43]} f4 {[%emt 0:00:
00]} 25. Rb7 {[%emt 0:00:18]} Qd8 {[%emt 0:00:08]} 26. Bc1 {[%emt 0:05:57]} Nc5
{[%emt 0:11:45]} 27. R7b6 {[%emt 0:01:23]} Bg3 {[%emt 0:01:29]} 28. h3 {
[%emt 0:00:34]} Qh4 {[%emt 0:00:35]} 29. Bd1 {[%emt 0:00:04]} e4 {[%emt 0:00:
00]} 30. fxe4 {[%emt 0:00:06]} Nxe4 {[%emt 0:07:07]} 31. Qxe4 {[%emt 0:10:15]}
Rae8 {[%emt 0:00:00]} 32. Qxe8 {[%emt 0:00:05]} Rxe8 {[%emt 0:00:00]} 33. Rb8 {
[%emt 0:00:05]} Bf2+ {[%emt 0:00:00]} 34. Kh2 {[%emt 0:00:06]} Qe7 {[%emt 0:00:
00]} 35. Bd2 {[%emt 0:00:31]} Ng3 {[%emt 0:00:50]} 36. Rxe8+ {[%emt 0:01:03]}
Qxe8 {[%emt 0:00:00]} 37. Bg4 {[%emt 0:00:22]} h5 {[%emt 0:00:37]} 38. Be6+ {
[%emt 0:00:04]} Kh7 {[%emt 0:00:03]} 39. Bxf4 {[%emt 0:00:04]} Qg6 {[%emt 0:00:
00]} 40. Nd2 {[%emt 0:08:27]} Ne2 {[%emt 0:00:45]} 41. Bxd6 {[%emt 0:30:41]}
Bg3+ {[%emt 0:30:11]} 42. Bxg3 {[%emt 0:03:52]} Qxg3+ {[%emt 0:00:30]} 43. Kh1
{[%emt 0:00:07]} Qd3 {[%emt 0:00:00]} 44. d6 {[%emt 0:00:00]} Qxd2 {[%emt 0:00:
00]} 45. d7 {[%emt 0:00:00]} Kg6 {[%emt 0:00:00]} 46. c4 {[%emt 0:00:00]} Kf6 {
[%emt 0:00:00]} 47. Bd5 {[%emt 0:00:00]} Ke7 {[%emt 0:00:00]} 48. Bc6 {[%emt 0:
00:00]} Nd4 {[%emt 0:00:00]} 49. Bd5 {[%emt 0:00:00]} Kxd7 {[%emt 0:00:00]} 50.
c5 {[%emt 0:00:00]} Qc3 {[%emt 0:00:00]} 51. Rd1 {[%emt 0:00:00]} Qxc5 {
[%emt 0:00:00]} 52. Bf3 {[%emt 0:00:00]} g6 {[%emt 0:00:00]} 53. Be4 {[%emt 0:
00:00]} g5 {[%emt 0:00:00]} 54. Bf3 {[%emt 0:00:00]} h4 {[%emt 0:00:00]} 55.
Bg4+ {[%emt 0:00:00]} Kd6 {[%emt 0:00:00]} 56. Rf1 {[%emt 0:00:00]} Qc4 {
[%emt 0:00:00]} 57. Rf6+ {[%emt 0:00:00]} Ke5 {[%emt 0:00:00]} 58. Rg6 {
[%emt 0:00:00]} Kf4 {[%emt 0:00:00]} 59. Kh2 {[%emt 0:00:00]} Qxa4 {[%emt 0:00:
00]} 60. Rf6+ {[%emt 0:00:00]} Ke5 {[%emt 0:01:20]} 0-1

[Event "44th Chess Olympiad Open 2022"]
[Site "Chennai"]
[Date "2022.08.08"]
[Round "10.28"]
[White "Khusenkhojaev, Mustafokhuja"]
[Black "Morovic Fernandez, Ivan"]
[Result "1/2-1/2"]
[WhiteElo "2238"]
[BlackElo "2489"]
[Annotator "RC"]
[PlyCount "56"]
[EventDate "2022.??.??"]
[TimeControl "60"]

1. d4 {[%emt 0:00:04]} Nf6 {[%emt 0:00:27]} 2. Nf3 {[%emt 0:00:11]} d5 {
[%emt 0:00:19]} 3. c4 {[%emt 0:00:18]} e6 {[%emt 0:00:41]} 4. g3 {[%emt 0:00:
00]} Bb4+ {[%emt 0:02:21]} 5. Bd2 {[%emt 0:00:14]} Be7 {[%emt 0:00:04]} 6. Bg2
{[%emt 0:00:11]} O-O {[%emt 0:00:04]} 7. Qc2 {[%emt 0:01:03]} c6 {[%emt 0:00:
00]} 8. O-O {[%emt 0:00:21]} b6 {[%emt 0:00:37]} 9. Rd1 {[%emt 0:13:38]} Ba6 {
[%emt 0:10:32]} 10. Ne5 {[%emt 0:00:00]} Nfd7 {[%emt 0:04:10]} 11. cxd5 {
[%emt 0:03:22]} cxd5 {[%emt 0:00:32]} 12. e4 {[%emt 0:05:04]} Nxe5 {[%emt 0:00:
00]} 13. exd5 {[%emt 0:07:31]} Be2 {[%emt 0:00:28]} 14. dxe5 {[%emt 0:00:19]}
Bxd1 {[%emt 0:00:10]} 15. Qxd1 {[%emt 0:00:06]} exd5 {[%emt 0:00:04]} 16. Nc3 {
[%emt 0:00:24]} Nc6 {[%emt 0:00:05]} 17. Nxd5 {[%emt 0:00:18]} Nxe5 {[%emt 0:
00:00]} 18. Nxe7+ {[%emt 0:00:06]} Qxe7 {[%emt 0:00:06]} 19. Bxa8 {[%emt 0:00:
00]} Rxa8 {[%emt 0:00:05]} 20. Bc3 {[%emt 0:00:18]} Rd8 {[%emt 0:23:36]} 21.
Qe2 {[%emt 0:03:11]} Ng6 {[%emt 0:01:19]} 22. Qf3 {[%emt 0:02:07]} Qd7 {
[%emt 0:24:06]} 23. Re1 {[%emt 0:04:30]} f6 {[%emt 0:08:40]} 24. h4 {[%emt 0:
00:00]} Qd5 {[%emt 0:04:24]} 25. Qg4 {[%emt 0:04:30]} Qd7 {[%emt 0:04:10]} 26.
Qf3 {[%emt 0:03:54]} Qd5 {[%emt 0:01:07]} 27. Qg4 {[%emt 0:00:20]} Qd7 {
[%emt 0:04:17]} 28. Qf3 {[%emt 0:01:00]} Qd5 {[%emt 0:02:28]} 1/2-1/2

[Event "44th Chess Olympiad Open 2022"]
[Site "Chennai"]
[Date "2022.08.08"]
[Round "10.28"]
[White "Ilkhomi, Jaloliddin"]
[Black "Lopez Silva, Hugo"]
[Result "0-1"]
[WhiteElo "2076"]
[BlackElo "2403"]
[Annotator "RC"]
[PlyCount "104"]
[EventDate "2022.??.??"]
[TimeControl "60"]

1. d4 {[%emt 0:00:03]} Nf6 {[%emt 0:00:02]} 2. Nf3 {[%emt 0:00:06]} g6 {
[%emt 0:00:09]} 3. Bg5 {[%emt 0:00:05]} Bg7 {[%emt 0:00:20]} 4. Nbd2 {[%emt 0:
00:00]} O-O {[%emt 0:09:22]} 5. c3 {[%emt 0:00:49]} d6 {[%emt 0:00:12]} 6. e4 {
[%emt 0:00:20]} c5 {[%emt 0:02:10]} 7. dxc5 {[%emt 0:00:15]} dxc5 {[%emt 0:00:
00]} 8. Bc4 {[%emt 0:00:02]} Nc6 {[%emt 0:00:28]} 9. O-O {[%emt 0:02:26]} Qc7 {
[%emt 0:00:31]} 10. Qe2 {[%emt 0:01:57]} h6 {[%emt 0:06:14]} 11. Be3 {[%emt 0:
00:00]} b6 {[%emt 0:07:56]} 12. Rac1 {[%emt 0:04:01]} Ng4 13. b4 {[%emt 0:00:
00]} Nd8 {[%emt 0:12:07]} 14. Nb3 {[%emt 0:16:10]} Nxe3 {[%emt 0:17:00]} 15.
Qxe3 {[%emt 0:00:00]} Be6 {[%emt 0:00:01]} 16. Nfd2 {[%emt 0:00:00]} Bxc4 {
[%emt 0:03:19]} 17. Nxc4 {[%emt 0:00:00]} Nb7 {[%emt 0:00:04]} 18. bxc5 {
[%emt 0:01:36]} Rac8 {[%emt 0:00:50]} 19. f4 {[%emt 0:00:00]} Nxc5 {[%emt 0:00:
00]} 20. e5 {[%emt 0:00:00]} Rfd8 {[%emt 0:05:15]} 21. Nb2 {[%emt 0:00:55]} Qc6
{[%emt 0:10:55]} 22. c4 {[%emt 0:13:39]} Qe4 {[%emt 0:01:10]} 23. Qc3 {[%emt 0:
00:00]} Nd3 {[%emt 0:04:21]} 24. Nxd3 {[%emt 0:01:20]} Rxd3 {[%emt 0:03:53]}
25. Qc2 {[%emt 0:03:21]} Rcd8 {[%emt 0:03:43]} 26. c5 {[%emt 0:02:51]} Qc6 {
[%emt 0:01:29]} 27. cxb6 {[%emt 0:02:29]} Qxb6+ {[%emt 0:00:37]} 28. Qc5 {
[%emt 0:00:42]} Qa6 {[%emt 0:00:49]} 29. Qxe7 {[%emt 0:04:33]} Qxa2 {[%emt 0:
00:00]} 30. e6 {[%emt 0:01:13]} Qxb3 {[%emt 0:03:53]} 31. Qxf7+ {[%emt 0:00:07]
} Kh8 {[%emt 0:02:48]} 32. Qxg6 {[%emt 0:10:47]} Rd1 {[%emt 0:04:41]} 33. Rcxd1
{[%emt 0:04:16]} Rxd1 {[%emt 0:00:00]} 34. Rxd1 {[%emt 0:00:13]} Qxd1+ {
[%emt 0:00:00]} 35. Kf2 {[%emt 0:00:06]} Qd4+ {[%emt 0:00:00]} 36. Kf3 {
[%emt 0:01:00]} Qd5+ {[%emt 0:00:45]} 37. Kg3 {[%emt 0:00:13]} Qd8 {[%emt 0:00:
00]} 38. Qf7 {[%emt 0:02:09]} Qg8 {[%emt 0:00:00]} 39. Qd7 {[%emt 0:00:40]}
Bf6+ {[%emt 0:00:00]} 40. Kf3 {[%emt 0:00:08]} Qg7 {[%emt 0:00:33]} 41. Qe8+ {
[%emt 0:30:35]} Kh7 {[%emt 0:10:22]} 42. g4 {[%emt 0:00:00]} a5 {[%emt 0:02:59]
} 43. Qb5 {[%emt 0:00:00]} Qc7 {[%emt 0:09:01]} 44. g5 {[%emt 0:00:00]} hxg5 {
[%emt 0:00:44]} 45. fxg5 {[%emt 0:00:00]} Qc3+ {[%emt 0:00:20]} 46. Kg4 {
[%emt 0:00:00]} Qd4+ {[%emt 0:05:00]} 47. Kf3 {[%emt 0:00:00]} Qd1+ {[%emt 0:
00:00]} 48. Ke4 {[%emt 0:00:00]} Qg4+ {[%emt 0:00:55]} 49. Kd5 {[%emt 0:00:00]}
Qf5+ {[%emt 0:00:34]} 50. Kc6 {[%emt 0:00:00]} Qxe6+ {[%emt 0:00:38]} 51. Kb7 {
[%emt 0:00:00]} Qe4+ {[%emt 0:00:52]} 52. Qc6 {[%emt 0:00:00]} Qxc6+ {[%emt 0:
00:00]} 0-1

[Event "44th Chess Olympiad Open 2022"]
[Site "Chennai"]
[Date "2022.08.08"]
[Round "10.29"]
[White "Gan-Erdene, Sugar"]
[Black "Mwadzura, Roy"]
[Result "1-0"]
[WhiteElo "2428"]
[BlackElo "2093"]
[Annotator "RC"]
[PlyCount "103"]
[EventDate "2022.??.??"]
[TimeControl "60"]

1. d4 {[%emt 0:00:07]} Nf6 {[%emt 0:01:24]} 2. c4 {[%emt 0:00:07]} e6 {[%emt 0:
00:00]} 3. g3 {[%emt 0:00:12]} d5 {[%emt 0:00:07]} 4. Nf3 {[%emt 0:00:16]} Be7
{[%emt 0:00:17]} 5. Bg2 {[%emt 0:00:19]} O-O {[%emt 0:00:21]} 6. O-O {[%emt 0:
00:00]} dxc4 {[%emt 0:00:06]} 7. Qa4 {[%emt 0:00:37]} a6 {[%emt 0:00:55]} 8.
Qxc4 {[%emt 0:00:15]} b5 {[%emt 0:00:15]} 9. Qc2 {[%emt 0:00:08]} Bb7 {[%emt 0:
00:00]} 10. Bd2 {[%emt 0:00:31]} Be4 {[%emt 0:06:04]} 11. Qc1 {[%emt 0:00:45]}
Nbd7 {[%emt 0:00:06]} 12. Ba5 {[%emt 0:03:28]} Rc8 {[%emt 0:00:10]} 13. Nbd2 {
[%emt 0:04:15]} Ba8 {[%emt 0:00:19]} 14. Ne5 {[%emt 0:12:20]} Bxg2 {[%emt 0:00:
00]} 15. Kxg2 {[%emt 0:00:03]} Nxe5 {[%emt 0:00:17]} 16. dxe5 {[%emt 0:00:06]}
Ng4 {[%emt 0:11:57]} 17. Nf3 {[%emt 0:00:35]} Qe8 {[%emt 0:00:35]} 18. h3 {
[%emt 0:01:50]} Nh6 {[%emt 0:00:12]} 19. Bd2 {[%emt 0:00:42]} Kh8 {[%emt 0:00:
00]} 20. Bxh6 {[%emt 0:03:16]} gxh6 {[%emt 0:00:04]} 21. Qxh6 {[%emt 0:00:12]}
Rg8 {[%emt 0:00:20]} 22. Qf4 {[%emt 0:01:05]} c5 {[%emt 0:00:44]} 23. Rfd1 {
[%emt 0:08:04]} Rg7 {[%emt 0:05:05]} 24. Qe4 {[%emt 0:00:58]} Rc7 {[%emt 0:00:
00]} 25. a4 {[%emt 0:04:31]} Rg8 {[%emt 0:04:09]} 26. h4 {[%emt 0:14:23]} c4 {
[%emt 0:08:30]} 27. Rac1 {[%emt 0:11:52]} Qc8 {[%emt 0:07:37]} 28. axb5 {
[%emt 0:02:01]} axb5 {[%emt 0:00:12]} 29. Qf4 {[%emt 0:00:20]} b4 {[%emt 0:00:
00]} 30. Ng5 {[%emt 0:01:58]} Rf8 {[%emt 0:09:59]} 31. Ne4 {[%emt 0:08:19]} c3
{[%emt 0:12:03]} 32. bxc3 {[%emt 0:03:11]} bxc3 {[%emt 0:00:06]} 33. Nf6 {
[%emt 0:05:48]} Rc4 {[%emt 0:05:13]} 34. Rd4 {[%emt 0:00:00]} Rxd4 {[%emt 0:00:
00]} 35. Qxd4 {[%emt 0:00:00]} Qc6+ {[%emt 0:01:49]} 36. Qe4 {[%emt 0:00:17]}
Qxe4+ {[%emt 0:02:38]} 37. Nxe4 {[%emt 0:00:05]} Bb4 {[%emt 0:00:49]} 38. Nxc3
{[%emt 0:00:14]} Ba3 {[%emt 0:00:58]} 39. Rb1 {[%emt 0:00:07]} h6 {[%emt 0:00:
00]} 40. Ne4 {[%emt 0:00:09]} Rd8 {[%emt 0:00:27]} 41. Rb3 {[%emt 0:30:32]} Bf8
{[%emt 0:30:17]} 42. Rd3 {[%emt 0:00:28]} Ra8 {[%emt 0:00:11]} 43. Rd7 {
[%emt 0:00:17]} Kg8 {[%emt 0:00:50]} 44. f4 {[%emt 0:01:57]} Ra3 {[%emt 0:00:
00]} 45. Kf2 {[%emt 0:00:14]} Ra5 {[%emt 0:00:42]} 46. g4 {[%emt 0:01:08]} Ra4
{[%emt 0:00:10]} 47. Kf3 {[%emt 0:00:04]} Ra3+ {[%emt 0:00:13]} 48. e3 {
[%emt 0:00:05]} Ra1 {[%emt 0:00:03]} 49. g5 {[%emt 0:00:29]} Rh1 {[%emt 0:00:
00]} 50. g6 {[%emt 0:00:56]} h5 {[%emt 0:01:22]} 51. gxf7+ {[%emt 0:01:06]} Kh8
{[%emt 0:01:33]} 52. Ng5 {[%emt 0:00:10]} 1-0